Cogmind - Beta 9.2 @@@ ROGUE MODE // 2019.12.05 @ 11:11:18 Player: GammaGradiation Result: Destroyed by G-34 Mercenary with Small Laser Performance ------------- Evolutions (1) 500 Regions Visited (3) 600 Robots Destroyed (4) 20 Value Destroyed (64) 64 Prototype IDs (0) 0 Alien Tech Used (0) 0 Bonus (0) 0 TOTAL SCORE: 1184 Bonus ------- None Cogmind --------- Core Integrity 0/400 Matter 280/300 Energy 45/100 System Corruption 0% Temperature Cool (27) Movement Core (50) Location -9/Materials Parts ------- > --- POWER (1) -------- (None) > --- PROPULSION (3) --- (None) > --- UTILITY (3) ------ (None) > --- WEAPON (2) ------- (None) > --- INVENTORY (4) ---- Small Storage Unit Medium Storage Unit Peak State ------------ > --- POWER ------------ Light Ion Engine > --- PROPULSION ------- Flight Unit Flight Unit > --- UTILITY ---------- (None) > --- WEAPON ----------- Small Laser Light Assault Rifle > --- INVENTORY -------- Light Ion Engine Small Storage Unit Medium Storage Unit Mining Laser [Rating: 5] Favorites ----------- Power Light Ion Engine Engine Light Ion Engine Propulsion Flight Unit Flight Unit Flight Unit Utility Improved Terrain Scanner Device Improved Terrain Scanner Weapon Light Assault Rifle Energy Gun Small Laser Ballistic Gun Light Assault Rifle Special Weapon Mining Laser Build | -11 -10 -10 -9 ------- Run | Scr Mat Min Mat Slots Evolved 2 | . . . 2 Power . | . . . . Propulsion 1 | . . . 1 Utility 1 | . . . 1 Weapon . | . . . . Parts Attached 11 | 2 . 3 6 Power 2 | . . 1 1 Engine 2 | . . 1 1 Core . | . . . . Reactor . | . . . . Propulsion 2 | . . 2 . Treads . | . . . . Leg . | . . . . Wheel . | . . . . Hover . | . . . . Flight 2 | . . 2 . Utility 1 | . . . 1 Device 1 | . . . 1 Storage . | . . . . Processor . | . . . . Hackware . | . . . . Protection . | . . . . Artifact . | . . . . Weapon 6 | 2 . . 4 Energy Gun 1 | 1 . . . Energy Cannon . | . . . . Ballistic Gun 1 | 1 . . . Ballistic Cannon . | . . . . Launcher . | . . . . Special Weapon 4 | . . . 4 Impact Weapon . | . . . . Slashing Weapon . | . . . . Piercing Weapon . | . . . . Special Melee Weapon . | . . . . Unidentified Prototypes . | . . . . Parts Lost 11 | . . 4 7 Power 2 | . . . 2 Propulsion 2 | . . 2 . Utility 1 | . . . 1 Weapon 6 | . . 2 4 Highest Loss Streak 4 | . . 4 4 Average Slot Usage (%) 30 | . 28 52 15 Engine 7 | . . 11 6 Flight 6 | . . 18 . Device 1 | . . . 2 Energy Gun 6 | . 14 10 . Ballistic Gun 6 | . 14 10 . Special Weapon 2 | . . . 6 Naked Turns 21 | . . . 21 Heaviest Build 5 | 2 2 5 4 Greatest Support 8 | 3 3 8 3 Greatest Overweight (x) 1 | . . 1 1 Average Overweight (x) . | . . . . Largest Inventory Capacity 4 | 4 4 4 4 Average Capacity 4 | 4 4 4 4 Most Carried 4 | 4 4 4 4 Average Carried 3 | 2 3 4 2 Final Capacity 4 | 4 4 4 4 Final Carried 4 | 4 4 4 2 Class Distribution -------------------- 100% | Mutant Dominant Class ---------------- Mutant | -10/Materials Mutant | -10/Mines Mutant | -9/Materials Resources | -11 -10 -10 -9 ----------- Run | Scr Mat Min Mat Matter Collected 255 | 220 . 35 . Remotely . | . . . . Salvage Created 65 | . . 46 19 Parts 5 | . . 5 . Haulers Intercepted . | . . . . Recyclers Shooed . | . . . . Parts Field Recycled . | . . . . Retrieved Matter . | . . . . Parts Self-Destructed . | . . . . Prevented . | . . . . Kills | -11 -10 -10 -9 ------- Run | Scr Mat Min Mat Combat Hostiles Destroyed 4 | . . 3 1 Guns 3 | . . 3 . Cannons 1 | . . . 1 Classes Destroyed 2 | . . 1 1 Swarmer 3 | . . 3 . Grunt 1 | . . . 1 Best Kill Streak 3 | . . 3 1 Combat Bots Only 3 | . . 3 1 Max Kills in Single Turn 1 | . . 1 1 Gunslinging . | . . . . Exploded . | . . . . Melee . | . . . . Uniques/NPCs Destroyed . | . . . . Combat | -11 -10 -10 -9 -------- Run | Scr Mat Min Mat Damage Taken 887 | . 24 234 629 Core 471 | . . 66 405 Absorbed by Shields . | . . . . Core Remaining (%) 86 | 100 . 73 . Volleys Fired 13 | . 1 5 7 Largest 2 | . 2 2 2 Hottest 200 | . 60 60 200 Shots Fired 22 | . 2 10 10 Gun 12 | . 2 10 . Cannon . | . . . . Launcher . | . . . . Special 10 | . . . 10 Kinetic 6 | . 1 5 . Thermal 16 | . 1 5 10 Explosive . | . . . . Electromagnetic . | . . . . Robot Hit Streak 3 | . . 3 1 Robot Miss Streak 4 | . . 2 4 Penetration Max . | . . . . Secondary Targets 2 | . . 2 . Max Gunslinging Chain 1 | . . 1 . Shots Hit Robots 8 | . . 5 3 Core Hits 7 | . . 3 4 Critical Hits . | . . . . Critical Kills . | . . . . Critical Parts Destroyed . | . . . . Melee Attacks . | . . . . Impact . | . . . . Slashing . | . . . . Piercing . | . . . . Sneak Attacks . | . . . . Combat Hostiles . | . . . . Follow-up Attacks . | . . . . Damage Inflicted 211 | . . 48 163 Guns 48 | . . 48 . Cannons . | . . . . Explosions . | . . . . Melee . | . . . . Ramming 19 | . . . 19 Kinetic 16 | . . 16 . Thermal 176 | . . 32 144 Explosive . | . . . . Electromagnetic . | . . . . Impact . | . . . . Slashing . | . . . . Piercing . | . . . . Highest Corruption . | . . . . Average Corruption . | . . . . Corruption Purged . | . . . . Overload Shots . | . . . . Overflow Damage 4 | . . . 4 Projectiles 4 | . . . 4 Explosions . | . . . . Melee . | . . . . Knockbacks . | . . . . Impact . | . . . . Kinetic . | . . . . Secondary . | . . . . Self-Inflicted Damage 8 | . . . 8 Shots . | . . . . Rammed 8 | . . . 8 Targets Rammed 8 | . . . 8 Kicked . | . . . . Crushed . | . . . . Highest Temperature 59 | . 10 28 59 Average Temperature 21 | . 7 11 25 Received Heat Transfer 184 | . 12 40 132 Siege Activations . | . . . . Robots Corrupted . | . . . . Combat Hostiles . | . . . . Parts Fried . | . . . . Impact Corruptions . | . . . . Robots Melted . | . . . . Combat Hostiles . | . . . . Parts Melted . | . . . . Heat Transferred 375 | . . 75 300 Parts Sabotaged . | . . . . Parts Stolen . | . . . . Parts Stripped . | . . . . Power Chain Reactions . | . . . . Missiles Intercepted . | . . . . Alert | -11 -10 -10 -9 ------- Run | Scr Mat Min Mat Peak Influence 119 | . 52 119 90 Average Influence 60 | . 23 87 62 Maximum Alert Level . | . . . . Low Security (%) 100 | 100 100 100 100 Level 1 . | . . . . Level 2 . | . . . . Level 3 . | . . . . Level 4 . | . . . . Level 5 . | . . . . High Security . | . . . . Max Security . | . . . . Squads Dispatched 5 | . 3 . 2 Investigation 1 | . 1 . . Extermination . | . . . . Reinforcement 4 | . 2 . 2 Assault . | . . . . Garrison . | . . . . Intercept . | . . . . Construction Impeded . | . . . . Haulers Reinforced . | . . . . Stealth | -11 -10 -10 -9 --------- Run | Scr Mat Min Mat Distress Signals 1 | . . . 1 Communications Jammed . | . . . . Distress Signals . | . . . . Times Spotted 38 | . 5 13 20 Peak Tracking Total 15 | . 4 7 15 Tactical Retreats 4 | . . 1 3 Traps | -11 -10 -10 -9 ------- Run | Scr Mat Min Mat Traps Triggered . | . . . . Indirectly . | . . . . Trap Hack Attempts . | . . . . Triggered . | . . . . Disarmed . | . . . . Reprogrammed . | . . . . Reused . | . . . . Traps Extracted . | . . . . Installed . | . . . . Triggered . | . . . . Machines | -11 -10 -10 -9 ---------- Run | Scr Mat Min Mat Machines Disabled . | . . . . Max in Single Turn . | . . . . Machines Sabotaged . | . . . . Garrisons Compromised . | . . . . Overloaded Fab Kills . | . . . . Fab Network Shutdowns . | . . . . Hacking | -11 -10 -10 -9 --------- Run | Scr Mat Min Mat Machines Accessed 1 | . 1 . . Terminals 1 | . 1 . . Fabricators . | . . . . Repair Stations . | . . . . Recycling Units . | . . . . Scanalyzers . | . . . . Garrison Access . | . . . . Total Hacks 2 | . 2 . . Successful 1 | . 1 . . Failed . | . . . . Catastrophic . | . . . . Database Lockouts 1 | . 1 . . Manual 2 | . 2 . . Terminals 2 | . 2 . . Fabricators . | . . . . Repair Stations . | . . . . Recycling Units . | . . . . Scanalyzers . | . . . . Garrison Access . | . . . . Terminal Hacks 1 | . 1 . . Part Schematic 1 | . 1 . . Fabricator Hacks . | . . . . Repair Station Hacks . | . . . . Recycling Unit Hacks . | . . . . Scanalyzer . | . . . . Garrison Access Hacks . | . . . . Unauthorized Hacks . | . . . . Terminals . | . . . . Fabricators . | . . . . Repair Stations . | . . . . Recycling Units . | . . . . Scanalyzers . | . . . . Garrison Access . | . . . . Data Cores Recovered . | . . . . Used . | . . . . Hacking Detections . | . . . . Full Trace Events . | . . . . Feedback Events . | . . . . Feedback Blocked . | . . . . Robot Schematics Acquired . | . . . . Robots Built . | . . . . Matter . | . . . . Time . | . . . . Total Robot Build Rating . | . . . . Part Schematics Acquired 1 | . 1 . . Parts Built . | . . . . Matter . | . . . . Time . | . . . . Total Part Build Rating . | . . . . Parts Repaired . | . . . . Time . | . . . . Parts Recycled . | . . . . Recycled Matter . | . . . . Retrieved Matter . | . . . . Retrieved Components . | . . . . Parts Scanalyzed . | . . . . Part Schematics Acquired . | . . . . Parts Damaged . | . . . . Bothacking | -11 -10 -10 -9 ------------ Run | Scr Mat Min Mat Used RIF Installer . | . . . . Robots Hacked . | . . . . Non-combat . | . . . . Combat . | . . . . Robot Hacks Applied . | . . . . Relay Couplers Released . | . . . . Robots Rewired . | . . . . Allies Hacked . | . . . . Hacks Repelled . | . . . . Allies | -11 -10 -10 -9 -------- Run | Scr Mat Min Mat Total Allies . | . . . . Largest Group . | . . . . Highest-Rated Group . | . . . . Highest-Rated Ally . | . . . . Total Orders . | . . . . Ally Attacks . | . . . . Total Damage . | . . . . Kills . | . . . . Allies Corrupted . | . . . . Allies Melted . | . . . . Intel | -11 -10 -10 -9 ------- Run | Scr Mat Min Mat Robot Analysis Total . | . . . . Derelict Logs Recovered 1 | . . 1 . Drone Launches . | . . . . Drone Recoveries . | . . . . Exploration | -11 -10 -10 -9 ------------- Run | Scr Mat Min Mat Turns Passed 360 | 26 56 121 157 Spaces Moved 515 | 38 99 229 149 Core 346 | 38 99 60 149 Treads . | . . . . Legs . | . . . . Wheels . | . . . . Hover . | . . . . Flight 169 | . . 169 . Fastest Speed 37 | 50 50 37 50 Average Speed 49 | 50 50 40 63 Slowest Speed 100 | 50 50 100 100 Overloaded Moves . | . . . . Propulsion Burnouts . | . . . . Robots Hopped 5 | . . 5 . Cave-ins Triggered . | . . . . Exploration Rate (%) 21 | 3 30 32 19 Regions Visited 3 Branch Regions 1 Pre-discovered Areas . | . . . . Known Exits Taken . | . . . . Unknown Exits Taken 3 | 1 1 1 . Scrap Searched 1 | . . 1 . Spaces Dug . | . . . . Terrain Destroyed 1 | . . . 1 Melee . | . . . . Projectile 1 | . . . 1 AOE . | . . . . Actions | -11 -10 -10 -9 --------- Run | Scr Mat Min Mat Total 566 | 43 104 240 179 Wait 19 | . 1 9 9 Move 503 | 37 98 219 149 Hop 4 | . . 4 . Pick Up 6 | 4 2 . . Fast Attach 9 | 2 . 3 4 Attach 2 | . . . 2 Detach . | . . . . Swap . | . . . . Drop 2 | . 2 . . Fire 13 | . 1 5 7 Melee . | . . . . Ram 8 | . . . 8 Kick . | . . . . Crush . | . . . . Escape Stasis . | . . . . Rewire . | . . . . Trap . | . . . . Miscellaneous . | . . . . Route ------- -11/Scrapyard -10/Materials -10/Mines -9/Materials (discovered 1 exit: Mat) History --------- Turn | Location | Event 15 | -11/Scrapyard | Discovered new exit (range 15) 27 | -11/Scrapyard | Entered Materials 30 | -10/Materials | Central database locked down 70 | -10/Materials | Discovered new exit (range 9) 83 | -10/Materials | Entered Mines 110 | -10/Mines | Discovered new exit (range 10) 112 | -10/Mines | Learned 2 Materials zone layouts 127 | -10/Mines | Met a Derelict bent on vengeance 132 | -10/Mines | Assembled infested the area 137 | -10/Mines | Assisted by a Guerilla fighting off Assembled 204 | -10/Mines | Entered Materials 204 | -9/Materials | Evolved 2 slots: Propulsion x1, Utility x1 205 | -9/Materials | Identified exit to Materials 208 | -9/Materials | Lost 4 parts (2n2w) 298 | -9/Materials | Core integrity fell below 50% 306 | -9/Materials | Build established: Mutant 332 | -9/Materials | Lost 3 parts (1p1u1w) 350 | -9/Materials | Core integrity fell below 20% 361 | -9/Materials | Destroyed by G-34 Mercenary with Small Laser Last Messages --------------- 00276_ Mining Laser destroyed. 00278_ Slammed into A-02 Transporter. 00280_ Slammed into Y-45 Defender. 00287_ K-01 Serf collects debris. 00296_ Slammed into S-10 Pest. 00296_ Destabilizing: Core damaged (-20). 00297_ Slammed into S-10 Pest. 00301_ Imp. Terrain Scanner destroyed. 00306_ Slammed into O-16 Technician. 00320_ Acquired Mining Laser. 00326_ K-01 Serf collects debris. 00327_ Destroyed Flight Unit. 00345_ U-05 Engineer lays Concrete. 00346_ Mining Laser destroyed. 00347_ U-05 Engineer builds a Wall. 00351_ Acquired Mining Laser. 00353_ Lgt. Ion Engine destroyed. 00353_ G-34 Mercenary destroyed. 00359_ U-05 Engineer lays Concrete. 00359_ Mining Laser destroyed. Map ----- +----------------------------------------------------+ | ????# %% T + """ #?# #?????????? | | ?#### ### # #?# #?????????? | | ?# #?# ### ## """ #?? ??????????? | | ?# #?#######?#%## """ #?? ??????????? | | ?# ###########/## """ #?? ??????????? | | ?# #?# ## ???? ??????????? | | ##+## #?# T ##########??? ??????????? | | # #?# #???????????? ??????????? | | " # #?# #???????????? ??????????? | | " # #?# """ """ #???????????????????????? | | " # #?# """%""" #???????????????????????? | | # ^#?# """ """ #???????????????????????? | | " # #?# #???????????????????????? | | " # #######/#######??#####??????????????? | | " # #? #??????????????? | | + # T #??????????????? | | ##### # +??????????????? | | ???#####+####%##### / [ #??????????????? | | ?????? ??#%#??## # #??????????????? | | ? ??? """??# #???# #?! #??????????????? | | ????# """ ?# #???# #########?????????????? | | ????# """ ##/##### # #?????????????? | | ????# # # # #??????????????? | | ????+ # # Y# || #??????????????? | | ????########"S + Y sg || #??????????????? | | ???#???????#""" # # g@| #??????????????? | | ???????????# "" # # #??????????????? | | ???????????# # ########??????????????? | | ???????????######## # #??# #???# #???? | | ??????????????????# # """ #??# ########??? | | ??????????????????# # """ #??# # #??? | | ??????????????????# ^ + """ #??# # #??? | | ??????????????????# # #??# # #??? | | ??????????????????# # #??# # #??? | | ??????????????????# ########??# # #??? | | ??????????????????# # #??# # #??? | | ??????????????????+ # """#??# ##+##+##??? | | ??????????????????# # """#??# #??? | | ??????????????????? + """#??#### #??? | | ???????????????????? # """#?????# #??? | | ???????????????????? # #?????# ##??? | | ???????????????????? ############?# #???? | | ???????????????????? #?# #???? | | ???????????????????? < #?# #???? | | ???????????????????? #?# #???? | | ????????????????????+########+###### #???? | | ???????????????????? # + #???? | | ????????????????????""""" # ###+##+####? | | ????????????????????""""" # # #? | | ????????????????????""""" # " " # #? | +----------------------------------------------------+ Best States ------------- Heat Dissipation 28 Energy Generation 10 Energy Capacity 125 Matter Stores 300 Matter Capacity 300 Sight Range 16 Terrain Scan Range 16 Terrain Scan Density 10 Evasion (%) 62 Item Schematics ----------------- Flight Unit | -10/Materials | Hacked Robot Schematics ------------------ None Fabricated ------------ Nothing Alien Tech Used ----------------- None Achievements -------------- None Challenges ------------ None Game ------ Seed AdvancedHackingGravjet Manual? 0 Play Time 00:12:24 Cumulative 63.8 hours Start 2019.12.04 @ 22:01:53 End 2019.12.05 @ 11:11:18 Sessions 3 Manual Loads 0 Difficulty Rogue Special Mode None Game No. 53 Rogue 53 Adventurer 0 Explorer 0 Win Type - Total 0 Types 0/0/0/0/0/0/0 Lore% 49 Gallery% 49 Achievement% 39 Wizard Run 0 Options --------- ASCII 1 Keyboard 1 Movement Numpad Keybinds 0 Fullscreen 1 Font 18/SmallcapsGlow Map View 76x50 Tactical HUD 1 Map Filters NONE Filters NONE Steam 0 RUN: 750710bf-c2e9-4dc3-b54b-1cc1904b18a9